Cogmind - Beta 13 @@@ ROGUE MODE // 2024.04.15 @ 11:39:28 Player: Red_Zig Result: Destroyed by YI-UF0 with YI-UF0's Doublenader Performance ------------- Evolutions (0) 0 Regions Visited (4) 800 Robots Destroyed (24) 120 Value Destroyed (538) 538 Prototype IDs (38) 760 Alien Tech Used (0) 0 Bonus (300) 300 TOTAL SCORE: 2518 Bonus ------- Aligned with FarCom 300 Cogmind --------- Core Integrity 0/250 Matter 229/300 Energy 160/160 System Corruption 0% Temperature Cool (30) Movement Treading (160) Location -9/Mines Parts ------- > --- POWER (1) -------- Light Nuclear Core > --- PROPULSION (2) --- Improved Treads Improved Treads > --- UTILITY (2) ------ Large Storage Unit Structural Scanner > --- WEAPON (2) ------- Autogun Minigun > --- INVENTORY (15) --- Carbon-fiber Leg Carbon-fiber Leg Large Matter Pod (150) Signal Interpreter Cloak of Protection Light Armor Plating Hacking Suite System Shield Decoy Drone Bay Flak Cannon Grenade Launcher Rocket Launcher Datajack Makeshift Axe Peak State ------------ > --- POWER ------------ Light Nuclear Core > --- PROPULSION ------- Improved Treads Improved Treads > --- UTILITY ---------- Large Storage Unit Experimental Sensor Array > --- WEAPON ----------- Minigun Flak Cannon > --- INVENTORY -------- Carbon-fiber Leg Carbon-fiber Leg Large Matter Pod Signal Interpreter Cloak of Protection Light Armor Plating Hacking Suite System Shield Decoy Drone Bay Autogun Grenade Launcher Rocket Launcher Datajack Makeshift Axe [Rating: 27] Favorites ----------- Power Ion Engine Engine Ion Engine Power Core Light Nuclear Core Propulsion Improved Treads Treads Improved Treads Utility Large Storage Unit Device Structural Scanner Storage Large Storage Unit Weapon Autogun Energy Gun Medium Laser Ballistic Gun Autogun Ballistic Cannon Flak Cannon Slashing Weapon Makeshift Axe Special Melee Weapon Datajack Build | -11 -10 -10 -10 -9 ------- Run | Yrd Mat Min Exi Min Slots Evolved . | . . . . . Power . | . . . . . Propulsion . | . . . . . Utility . | . . . . . Weapon . | . . . . . Parts Attached 29 | 6 14 3 1 5 Power 4 | 1 1 2 . . Engine 3 | 1 1 1 . . Core 1 | . . 1 . . Reactor . | . . . . . Propulsion 4 | 2 2 . . . Treads 4 | 2 2 . . . Leg . | . . . . . Wheel . | . . . . . Hover . | . . . . . Flight . | . . . . . Utility 6 | 1 3 . . 2 Device 4 | . 2 . . 2 Storage 2 | 1 1 . . . Processor . | . . . . . Hackware . | . . . . . Protection . | . . . . . Artifact . | . . . . . Weapon 15 | 2 8 1 1 3 Energy Gun 1 | 1 . . . . Energy Cannon . | . . . . . Ballistic Gun 10 | 1 7 1 . 1 Ballistic Cannon 1 | . . . . 1 Launcher . | . . . . . Special Weapon . | . . . . . Impact Weapon . | . . . . . Slashing Weapon 1 | . . . . 1 Piercing Weapon . | . . . . . Special Melee Weapon 2 | . 1 . 1 . Unidentified Prototypes 1 | . . . . 1 Parts Lost 1 | . 1 . . . Power 1 | . 1 . . . Propulsion . | . . . . . Utility . | . . . . . Weapon . | . . . . . Highest Loss Streak 1 | . 1 . . . To Critical Strikes . | . . . . . Average Slot Usage (%) 99 | . 98 100 100 99 Engine 7 | . 13 5 . . Core 6 | . . 8 14 14 Treads 28 | . 28 28 28 28 Device 13 | . 12 14 14 13 Storage 14 | . 14 14 14 14 Ballistic Gun 24 | . 25 28 15 17 Special Melee Weapon 1 | . . . 12 . Naked Turns . | . . . . . Heaviest Build 35 | 13 32 32 32 35 Greatest Support 46 | 40 46 46 46 46 Greatest Overweight (x) . | . . . . . Average Overweight (x) . | . . . . . Largest Inventory Capacity 15 | 8 15 15 15 15 Average Capacity 14 | 7 13 15 15 15 Most Carried 15 | 3 15 15 15 15 Average Carried 12 | 1 10 14 15 15 Final Capacity 15 | 8 15 15 15 15 Final Carried 15 | 3 15 15 15 15 Class Distribution -------------------- 100% | Mutant Dominant Class ---------------- Mutant | -10/Materials Mutant | -10/Mines Mutant | -10/Exiles Mutant | -9/Mines Resources | -11 -10 -10 -10 -9 ----------- Run | Yrd Mat Min Exi Min Matter Collected 902 | 240 499 142 . 21 Remotely . | . . . . . Salvage Created 806 | . 637 169 . . Parts 53 | . 43 10 . . Haulers Intercepted 1 | . 1 . . . Recyclers Shooed 1 | . 1 . . . Parts Field Recycled . | . . . . . Retrieved Matter . | . . . . . Parts Self-Destructed . | . . . . . Prevented . | . . . . . Kills | -11 -10 -10 -10 -9 ------- Run | Yrd Mat Min Exi Min Combat Hostiles Destroyed 17 | . 14 3 . . Guns 17 | . 14 3 . . Classes Destroyed 6 | . 6 . . . Hauler 1 | . 1 . . . Recycler 2 | . 1 1 . . Operator 1 | . 1 . . . Watcher 3 | . 3 . . . Swarmer 6 | . 6 . . . Grunt 11 | . 8 3 . . Best Kill Streak 5 | . 5 2 . . Combat Bots Only 3 | . 3 2 . . Max Kills in Single Turn 1 | . 1 1 . . Gunslinging . | . . . . . Exploded . | . . . . . Melee . | . . . . . Uniques/NPCs Destroyed . | . . . . . Combat | -11 -10 -10 -10 -9 -------- Run | Yrd Mat Min Exi Min Hostile Shots Fired 135 | . 110 13 . 12 Missed 47 | . 36 3 . 8 Damage Taken 1168 | . 716 117 . 335 Core 255 | . 140 12 . 103 Absorbed by Shields . | . . . . . Core Remaining (%) 100 | 100 . . . . Volleys Fired 93 | . 75 14 . 4 Largest 2 | . 2 2 . 2 Hottest 70 | . 70 48 . 48 Shots Fired 186 | . 150 28 . 8 Gun 186 | . 150 28 . 8 Cannon . | . . . . . Launcher . | . . . . . Special . | . . . . . Kinetic 170 | . 134 28 . 8 Thermal 16 | . 16 . . . Explosive . | . . . . . Electromagnetic . | . . . . . Robot Hit Streak 10 | . 10 9 . 3 Robot Miss Streak 5 | . 5 1 . 2 Penetration Max . | . . . . . Secondary Targets 5 | . 5 . . . Max Gunslinging Chain 1 | . 1 . . . Shots Hit Robots 117 | . 89 20 4 4 Core Hits 45 | . 39 6 . . Critical Kills 1 | . 1 . . . Critical Parts Destroyed 1 | . 1 . . . Critical Strikes 3 | . 3 . . . Burn 1 | . 1 . . . Destroy 2 | . 2 . . . Melee Attacks 15 | . 3 . 4 8 Impact . | . . . . . Slashing 8 | . . . . 8 Piercing . | . . . . . Sneak Attacks 7 | . 3 . 4 . Combat Hostiles . | . . . . . Follow-up Attacks . | . . . . . Damage Inflicted 1228 | . 840 325 . 63 Guns 1228 | . 840 325 . 63 Cannons . | . . . . . Explosions . | . . . . . Melee . | . . . . . Ramming . | . . . . . Kinetic 1139 | . 751 325 . 63 Thermal 89 | . 89 . . . Explosive . | . . . . . Electromagnetic . | . . . . . Impact . | . . . . . Slashing . | . . . . . Piercing . | . . . . . Highest Corruption . | . . . . . Average Corruption . | . . . . . Corruption Purged . | . . . . . Corruption Blocked . | . . . . . Overload Shots . | . . . . . Overflow Damage . | . . . . . Projectiles . | . . . . . Explosions . | . . . . . Melee . | . . . . . Knockbacks . | . . . . . Impact . | . . . . . Kinetic . | . . . . . Secondary . | . . . . . Self-Inflicted Damage . | . . . . . Shots . | . . . . . Rammed . | . . . . . Targets Rammed . | . . . . . Kicked . | . . . . . Crushed . | . . . . . Highest Temperature 210 | . 210 48 . 30 Average Temperature 44 | . 55 19 . 16 Received Heat Transfer 228 | . 162 66 . . Siege Activations . | . . . . . Robots Corrupted . | . . . . . Combat Hostiles . | . . . . . Parts Fried . | . . . . . Impact Corruptions . | . . . . . Robots Melted . | . . . . . Combat Hostiles . | . . . . . Parts Melted . | . . . . . Heat Transferred 333 | . 333 . . . Parts Sabotaged . | . . . . . Parts Stolen . | . . . . . Parts Stripped . | . . . . . Power Chain Reactions . | . . . . . Alert | -11 -10 -10 -10 -9 ------- Run | Yrd Mat Min Exi Min Peak Influence 149 | . 149 50 . 5 Initial 2 | . . 2 . . Average 36 | . 63 17 . 3 Maximum Alert Level . | . . . . . Low Security (%) 100 | 100 100 100 . 100 Level 1 . | . . . . . Level 2 . | . . . . . Level 3 . | . . . . . Level 4 . | . . . . . Level 5 . | . . . . . High Security . | . . . . . Max Security . | . . . . . Squads Dispatched 3 | . 2 1 . . Investigation 2 | . 1 1 . . Extermination . | . . . . . Reinforcement 1 | . 1 . . . Assault . | . . . . . Garrison . | . . . . . Intercept . | . . . . . Searches Triggered . | . . . . . Construction Impeded . | . . . . . Haulers Reinforced . | . . . . . Active Scanning Responses . | . . . . . Cargo Convoy Interrupts . | . . . . . Stealth | -11 -10 -10 -10 -9 --------- Run | Yrd Mat Min Exi Min Distress Signals 4 | . 3 . . 1 Communications Jammed . | . . . . . Distress Signals . | . . . . . Times Spotted 30 | . 24 5 . 1 Peak Tracking Total 4 | . 4 2 . 1 Tactical Retreats . | . . . . . Traps | -11 -10 -10 -10 -9 ------- Run | Yrd Mat Min Exi Min Traps Triggered 2 | . 2 . . . Indirectly . | . . . . . Trap Hack Attempts . | . . . . . Triggered . | . . . . . Disarmed 2 | . 2 . . . Reprogrammed . | . . . . . Reused . | . . . . . Traps Extracted . | . . . . . Installed . | . . . . . Triggered . | . . . . . Machines | -11 -10 -10 -10 -9 ---------- Run | Yrd Mat Min Exi Min Machines Disabled . | . . . . . Max in Single Turn . | . . . . . Machines Repaired . | . . . . . Machines Dismantled . | . . . . . Machines Sabotaged . | . . . . . Overloaded Fab Kills . | . . . . . Hacking | -11 -10 -10 -10 -9 --------- Run | Yrd Mat Min Exi Min Machines Accessed 7 | . 2 2 2 1 Terminals 3 | . 2 . . 1 Fabricators . | . . . . . Repair Stations . | . . . . . Recycling Units . | . . . . . Scanalyzers . | . . . . . Garrison Access . | . . . . . Total Hacks 30 | . 3 2 24 1 Successful 29 | . 2 2 24 1 Failed 1 | . 1 . . . Catastrophic 1 | . 1 . . . Database Lockouts . | . . . . . Manual 3 | . 2 . 1 . Terminals 4 | . 3 . . 1 Fabricators . | . . . . . Repair Stations . | . . . . . Recycling Units . | . . . . . Scanalyzers . | . . . . . Garrison Access . | . . . . . Terminal Hacks 29 | . 2 2 24 1 Record 24 | . 1 . 23 . Open Door 2 | . . 2 . . Disarm Traps 1 | . 1 . . . Zone Layout 1 | . . . . 1 Derelict Proto ID Bank 1 | . . . 1 . Fabricator Hacks . | . . . . . Repair Station Hacks . | . . . . . Recycling Unit Hacks . | . . . . . Scanalyzer . | . . . . . Garrison Access Hacks . | . . . . . Unauthorized Hacks . | . . . . . Terminals . | . . . . . Fabricators . | . . . . . Repair Stations . | . . . . . Recycling Units . | . . . . . Scanalyzers . | . . . . . Garrison Access . | . . . . . Data Cores Recovered . | . . . . . Used . | . . . . . Hacking Detections 2 | . 2 . . . Full Trace Events . | . . . . . Feedback Events . | . . . . . Feedback Blocked . | . . . . . Robot Schematics Acquired . | . . . . . Robots Built . | . . . . . Authchips . | . . . . . Time . | . . . . . Total Robot Build Rating . | . . . . . Part Schematics Acquired . | . . . . . Parts Built . | . . . . . Authchips . | . . . . . Time . | . . . . . Total Part Build Rating . | . . . . . Parts Repaired . | . . . . . Time . | . . . . . Parts Recycled . | . . . . . Recycled Matter . | . . . . . Retrieved Matter . | . . . . . Retrieved Components . | . . . . . Parts Scanalyzed . | . . . . . Part Schematics Acquired . | . . . . . Parts Damaged . | . . . . . Bothacking | -11 -10 -10 -10 -9 ------------ Run | Yrd Mat Min Exi Min Used RIF Installer . | . . . . . Robots Hacked 5 | . 1 . 4 . Non-combat 4 | . 1 . 3 . Combat 1 | . . . 1 . Robot Hacks Applied 5 | . 1 . 4 . parse_system 4 | . . . 4 . no_distress 1 | . 1 . . . Relay Couplers Released . | . . . . . Fabnet Peak Effective % . | . . . . . Robots Rewired . | . . . . . Allies Hacked . | . . . . . Hacks Repelled . | . . . . . Allies | -11 -10 -10 -10 -9 -------- Run | Yrd Mat Min Exi Min Total Allies . | . . . . . Largest Group . | . . . . . Highest-Rated Group . | . . . . . Highest-Rated Ally . | . . . . . Total Orders . | . . . . . Ally Attacks . | . . . . . Total Damage . | . . . . . Kills . | . . . . . Allies Corrupted . | . . . . . Allies Melted . | . . . . . Intel | -11 -10 -10 -10 -9 ------- Run | Yrd Mat Min Exi Min Robot Analysis Total . | . . . . . Derelict Logs Recovered 2 | . . 2 . . Drone Launches . | . . . . . Drone Recoveries . | . . . . . Exploration | -11 -10 -10 -10 -9 ------------- Run | Yrd Mat Min Exi Min Turns Passed 3334 | 68 1284 1369 393 220 Spaces Moved 1741 | 37 573 778 241 112 Core 2 | 2 . . . . Treads 1739 | 35 573 778 241 112 Legs . | . . . . . Wheels . | . . . . . Hover . | . . . . . Flight . | . . . . . Fastest Speed 50 | 50 160 160 160 160 Average Speed 159 | 154 160 160 160 160 Slowest Speed 160 | 160 160 160 160 160 Overloaded Moves . | . . . . . Propulsion Burnouts . | . . . . . Robots Hopped . | . . . . . Cave-ins Triggered . | . . . . . Exploration Rate (%) 56 | 3 82 99 63 34 Regions Visited 4 Branch Regions 3 Pre-discovered Areas 1 | . . . 1 . Known Exits Taken . | . . . . . Unknown Exits Taken 4 | 1 1 1 1 . Scrap Searched 3 | . . 2 . 1 Spaces Dug . | . . . . . Terrain Destroyed . | . . . . . Melee . | . . . . . Projectile . | . . . . . AOE . | . . . . . Terrain Rammed . | . . . . . Walls Destroyed . | . . . . . Machines Disabled . | . . . . . Actions | -11 -10 -10 -10 -9 --------- Run | Yrd Mat Min Exi Min Total 2129 | 45 815 884 247 138 Wait 208 | . 132 71 . 5 Move 1737 | 36 572 777 240 112 Hop . | . . . . . Pick Up 24 | 3 11 8 1 1 Fast Attach 12 | 6 3 1 . 2 Attach . | . . . . . Detach . | . . . . . Swap 17 | . 11 2 1 3 Drop 23 | . 8 11 1 3 Fire 93 | . 75 14 . 4 Melee 15 | . 3 . 4 8 Ram . | . . . . . Kick . | . . . . . Crush . | . . . . . Escape Stasis . | . . . . . Rewire . | . . . . . Trap . | . . . . . Miscellaneous . | . . . . . Route ------- -11/Scrapyard -10/Materials (discovered 4 exits: [*Mat x3] / *Min) -10/Mines (discovered 4 exits: [*Mat x2] / *Exi / [*Sub]) -10/Exiles -9/Mines History --------- Turn | Location | Event 2 | -11/Scrapyard | Met Revision 17 43 | -11/Scrapyard | Discovered new exit (range 15) 69 | -11/Scrapyard | Entered Materials 312 | -10/Materials | Build established: Mutant 705 | -10/Materials | Discovered new exit (range 16) 758 | -10/Materials | Discovered new exit (range 16) 1029 | -10/Materials | Discovered new exit (range 12) 1125 | -10/Materials | Core integrity fell below 50% 1240 | -10/Materials | Discovered new exit (range 4) 1353 | -10/Materials | Entered Mines 1370 | -10/Mines | Met a Derelict shopkeep closing up shop 1417 | -10/Mines | Met a Derelict bent on vengeance 1454 | -10/Mines | Discovered new exit (range 7) 1645 | -10/Mines | Learned 2 Materials zone layouts 1673 | -10/Mines | Received a Rocket Launcher from a helpful Derelict 1833 | -10/Mines | Discovered new exit (range 7) 1925 | -10/Mines | A weapon hastily lodged in a ceiling crevice suddenly fell to the ground 1959 | -10/Mines | Learned Materials stockpile data 1991 | -10/Mines | Discovered new exit (range 15) 2539 | -10/Mines | Found the Drone Emporium 2550 | -10/Mines | Found Prototype Device 2714 | -10/Mines | Deemed a non-threat by the Exiles lab entrance 2714 | -10/Mines | Discovered new exit (range 5) 2722 | -10/Mines | Entered Exiles 2762 | -10/Exiles | Met 8R-AWN 2809 | -10/Exiles | Met EX-HEX 2860 | -10/Exiles | Met EX-BIN 2879 | -10/Exiles | Aligned with FarCom system 2880 | -10/Exiles | Given EX-Vault access code 2919 | -10/Exiles | Opened EX-Vault 2932 | -10/Exiles | Found Cloak of Protection 2964 | -10/Exiles | Warned to stay clear of 0b10 Research branches 3010 | -10/Exiles | Met EX-DEC 3051 | -10/Exiles | Learned location of Zion (-7) 3096 | -10/Exiles | Discovered new exit (range 14) 3115 | -10/Exiles | Left Exiles lab with Cloak of Protection 3115 | -10/Exiles | Entered Mines 3121 | -9/Mines | YI-UF0 nonchalantly dropped a Grenade Launcher on the ground 3192 | -9/Mines | Found a damaged Exp. Sensor Array with a note attached 3196 | -9/Mines | Found Prototype Device 3196 | -9/Mines | Identified Exp. Sensor Array 3249 | -9/Mines | Excavation squad dispatched 3249 | -9/Mines | A large section of the Mines collapsed 3330 | -9/Mines | Core integrity fell below 20% 3335 | -9/Mines | Destroyed by YI-UF0 with YI-UF0's Doublenader Last Messages --------------- sneaking around Materials again, ha." 03195_ K-01 Serf collects debris. 03195_ Dropped Structural Scanner. 03196_ Acquired Prototype Device. 03196_ Identified Exp. Sensor Array. 03197_ Dropped Exp. Sensor Array. 03199_ YI-UF0 mumbles something. 03200_ Acquired Structural Scanner. 03206_ YI-UF0 mumbles something. 03214_ K-01 Serf collects debris. 03249_ ALERT: Suspicious cave-in, suspected derelict activity in mines. Dispatching escorted excavation squad. 03299_ The unstable cave ceiling collapses. 03313_ Acquired 1 matter. 03319_ The unstable cave ceiling collapses. 03326_ Destroyed Shock Absorption System. 03329_ The unstable cave ceiling collapses. 03330_ YI-UF0 mumbles something. 03330_ The unstable cave ceiling collapses. Map ----- +----------------------------------------------------+ | ?????????????????????????????????????????????????? | | ?????????????????????????????????????????????????? | | ?????????????????????????????????????????????????? | | ?????????????????????????????????????????????????? | | ?????????????????????????????????????????????????? | | ?????????????????????????????????????????????????? | | ?????????????????????????????????????????????????? | | ?????????????????????????????????????????????????? | | ??????????????????####???????????????????????????? | | ????????????????#########????????????????????????? | | ???????????????#### ####???## ??????????????????? | | ????????????? ### ??### ?????????????????? | | ???????????? ### ???## ??????????????? | | ?????????????[ # ?? ###???????????? | | ?????????? [ ?? ###???????????? | | ?????????? # # [ *?? ##???????????? | | ?????????? [ ?? ##???????????? | | ?????????? g [ ! ?? ##???????????? | | ?????????? # ##???????????? | | ????????? ## ??????????????? | | ??????????? ????????????????? | | ?????????????## ?????????????????? | | ?????????????#### # ?????????????????? | | ??????????????### ## ????????????????? | | ??????????????## #### ??????????????# | | ??????????????### @ ### ?????????????# | | ??????????????## # ###?????????????# | | ??????????????## # #### ?????????# | | ??????????????## ##### ?????????# | | ??????????????##### # # #####??????? | | ??????????????###### # ############# | | ?????????????????##### # # # ######### | | ??????????????????########### | | ????????????????????######### ######### | | ???????????????????????????#### ############ | | ???????????????????????????##### ######??????? | | ????????????????????????????### ####????????? | | ????????????????????????????## ###????????? | | ????????????????????????????## ##????????? | | ????????????????????????????### ##????????? | | ????????????????????????????### ########??? | | ?????????????????????????????### ########??? | | ?????????????????????????????####### ! ### ##### | | ??????????????????????????????####### ##### | | ??????????????????????????????????##### # | | ???????????????????????????????????##### #### # | | ?????????????????????????????????????##### #### | | ??????????????????????????????????######## ##?# | | ???????????????????????????????########### ##### | | ???????????????????????????????#####T##### ###?# | +----------------------------------------------------+ Best States ------------- Heat Dissipation 25 Energy Generation 14 Energy Capacity 250 Matter Stores 300 Matter Capacity 300 Sight Range 16 Terrain Scan Density 10 Evasion (%) 40 Recoil Reduction 2 Item Schematics ----------------- None Robot Schematics ------------------ None Fabricated ------------ Nothing Alien Tech Used ----------------- None Achievements -------------- None Challenges ------------ None Game ------ Seed TractorScatterHumpback Manual? 0 Play Time 00:30:36 Cumulative 26.0 hours Start 2024.04.15 @ 11:06:20 End 2024.04.15 @ 11:39:28 Sessions 1 Manual Loads 0 Difficulty Rogue Special Mode None Game No. 25 Rogue 13 Adventurer 12 Explorer 0 Win Type - Total 0 Types 0/0/0/0/0/0/0/0/0 Lore% 14 Gallery% 27 Achievement% 23 Wizard Run 0 Options --------- Layout 2 ASCII 0 Keyboard 0 Movement Mouse Keybinds 0 Fullscreen 1 Font 24/Smallcaps Map View 50x44 Zoom Use 9% Tactical HUD 1 Map Filters NONE Filters NONE Steam 1 RUN: 8214943e-0876-41e2-96c0-342c7af63786